fUSD/lending_fUSD_20251120
["ID","MTS","AMOUNT","RATE_DAILY","PERIOD"]
[394507930,1763647842238,-150.0,0.00039149,7]
[394507931,1763647842247,-1607.0,0.0003915,60]
[394507932,1763647842257,-1607.0,0.00039177,60]
[394507933,1763647842266,-1607.0,0.00039205,60]
[394507934,1763647842276,-216.748126,0.00039215,2]
[394507935,1763647842287,-1625.71408584,0.00039232,60]
[394507937,1763647842296,-150.0,0.00039324,7]
[394507939,1763647842306,-150.0,0.00039324,7]
[394507940,1763647842315,-150.0,0.00039428,7]
[394507941,1763647842326,-216.748126,0.00039508,2]
[394507942,1763647842336,-150.0,0.00039548,7]
[394507943,1763647842346,-150.0,0.00039615,7]
[394507944,1763647842356,-487.6,0.00039654,2]
[394507945,1763647842366,-498.23953974,0.00039788,2]
[394507946,1763647842375,-601.49,0.00039798,30]
[394507947,1763647842385,-883.43,0.00039818,5]
[394507948,1763647842394,-216.748126,0.00039846,2]
[394507949,1763647842403,-150.0,0.00039848,7]
[394507950,1763647842412,-150.0,0.00039848,7]
[394507951,1763647842421,-150.0,0.00039848,7]
[394507952,1763647842430,-150.0,0.00039848,7]
[394507953,1763647842440,-150.0,0.00039848,7]
[394507954,1763647842449,-150.0,0.00039848,7]
[394507955,1763647842458,-315.34,0.000399,14]
[394507956,1763647842468,-288.95359362,0.00039918,30]
[394507957,1763647842478,-1669.294,0.00039949,56]
[394507958,1763647842488,-150.0,0.00040081,7]
[394507959,1763647842498,-288.95359362,0.00040082,30]
[394507960,1763647842507,-216.748126,0.00040087,2]
[394507961,1763647842517,-150.0,0.00040148,7]
[394507962,1763647842527,-288.95359362,0.00040247,30]
[394507963,1763647842536,-150.0,0.00040267,7]
[394507964,1763647842546,-166.66,0.00040356,2]
[394507965,1763647842556,-150.0,0.00040372,7]
[394507966,1763647842565,-150.0,0.00040372,7]
[394507967,1763647842574,-550.38,0.00040384,2]
[394507968,1763647842584,-300.0,0.00040384,2]
[394507969,1763647842593,-416.09,0.00040384,2]
[394507970,1763647842602,-150.0,0.00040384,2]
[394507971,1763647842611,-550.68,0.00040384,2]
[394507972,1763647842620,-550.68,0.00040384,2]
[394507973,1763647842629,-1339.39689251,0.000404,2]
[394507974,1763647842638,-500.0,0.0004041,7]
[394507975,1763647842647,-500.0,0.0004041,7]
[394507976,1763647842657,-1100.0,0.0004041,7]
[394507977,1763647842666,-288.95359362,0.00040411,30]
[394507978,1763647842675,-216.748126,0.0004047,2]
[394507979,1763647842685,-150.0,0.00040547,7]
[394507980,1763647842695,-288.95359362,0.00040575,30]
[394507981,1763647842704,-1364.0,0.000406,7]
[394507982,1763647842714,-1000.0,0.000407,2]
[394507983,1763647842727,-216.748126,0.00040736,2]
[394507984,1763647842735,-288.95359362,0.0004074,30]
[394507985,1763647842745,-150.0,0.00040747,7]
[394507986,1763647842755,-1000.0,0.000408,90]
[394507987,1763647842765,-2000.0,0.00040801,120]
[394507988,1763647842775,-642.44,0.00040801,120]
[394507989,1763647842784,-1000.0,0.00040811,30]
[394507990,1763647842793,-492.586,0.00040811,30]
[394507991,1763647842802,-300.2022,0.00040843,103]
[394507992,1763647842811,-216.748126,0.00040874,2]
[394507993,1763647842821,-288.95359362,0.00040877,30]
[394507994,1763647842831,-942.0,0.00040896,30]
[394507995,1763647842840,-150.0,0.00040897,7]
[394507996,1763647842851,-150.0,0.00040897,7]
[394507997,1763647842860,-150.0,0.00040897,7]
[394507998,1763647842869,-210.0,0.0004093,30]
[394507999,1763647842879,-478.61,0.00040986,2]
[394508000,1763647842888,-164.0,0.00041,90]
[394508001,1763647842898,-150.0,0.00041013,7]
[394508002,1763647842908,-288.95359362,0.00041041,30]
[394508003,1763647842918,-500.0,0.00041095,2]
[394508004,1763647842928,-3524.37,0.00041095,2]
[394508005,1763647842937,-502.31910354,0.00041095,2]
[394508006,1763647842947,-300.0,0.00041095,2]
[394508007,1763647842958,-300.0,0.00041095,2]
[394508008,1763647842971,-500.0,0.00041095,2]
[394508009,1763647842981,-854.73,0.00041095,2]
[394508010,1763647842990,-500.0,0.00041095,2]
[394508011,1763647843000,-500.0,0.00041096,30]
[394508012,1763647843009,-150.0,0.00041096,10]
[394508013,1763647843018,-155.07,0.00041096,2]
[394508014,1763647843028,-565.74491387,0.000411,2]
[394508015,1763647843038,-454.0,0.000411,2]
[394508016,1763647843048,-150.0,0.00041106,30]
[394508017,1763647843058,-169.6,0.00041123,30]
[394508018,1763647843068,-374.95,0.00041123,30]
[394508019,1763647843077,-169.6,0.00041123,30]
[394508020,1763647843087,-169.6,0.00041123,30]
[394508021,1763647843096,-169.6,0.00041123,30]
[394508022,1763647843106,-169.6,0.00041123,30]
[394508023,1763647843115,-2500.0,0.000412,15]
[394508024,1763647843125,-338.7,0.00041205,30]
[394508025,1763647843135,-550.68,0.00041205,30]
[394508026,1763647843144,-550.68,0.00041205,30]
[394508027,1763647843154,-436.15,0.00041205,30]
[394508028,1763647843165,-288.95359362,0.00041205,30]
[394508029,1763647843174,-1100.0,0.00041232,60]
[394508030,1763647843183,-3100.0,0.000413,15]
[394508031,1763647843193,-942.0,0.00041318,30]
[394508032,1763647843204,-150.0,0.00041346,30]
[394508033,1763647843215,-216.748126,0.00041361,2]
[394508034,1763647843227,-500.0,0.00041369,2]
[394508035,1763647843236,-3524.37,0.00041369,2]
[394508036,1763647843247,-300.0,0.00041369,2]
[394508037,1763647843257,-300.0,0.00041369,2]
[394508038,1763647843266,-319.67364616,0.00041369,2]
[394508039,1763647843277,-854.73,0.00041369,2]
[394508040,1763647843288,-228.29338235,0.00041369,2]
[394508041,1763647843298,-500.0,0.0004137,30]
[394508042,1763647843308,-288.95359362,0.0004137,30]
[394508043,1763647843317,-315.34,0.000414,14]
[394508044,1763647843327,-600.0,0.000414,15]
[394508045,1763647843337,-150.0,0.00041421,30]
[394508046,1763647843347,-150.0,0.00041421,30]
[394508048,1763647843357,-216.748126,0.00041422,2]
[394508049,1763647843368,-150.0,0.00041479,30]
[394508050,1763647843377,-600.0,0.000415,15]
[394508051,1763647843387,-288.95359362,0.00041534,30]
[394508052,1763647843397,-166.66,0.00041568,2]
[394508053,1763647843406,-600.0,0.000416,15]
[394508054,1763647843416,-280.08737976,0.00041643,2]
[394508055,1763647843427,-3524.37,0.00041643,2]
[394508057,1763647843436,-300.0,0.00041643,2]
[394508058,1763647843445,-300.0,0.00041643,2]
[394508059,1763647843455,-854.73,0.00041643,2]
[394508061,1763647843464,-500.0,0.00041644,30]
[394508062,1763647843475,-216.748127,0.00041681,2]
[394508063,1763647843485,-288.95359362,0.00041699,30]
[394508064,1763647843496,-600.0,0.000417,15]
[394508065,1763647843506,-500.0,0.00041735,2]
[394508066,1763647843516,-942.0,0.00041739,30]
[394508067,1763647843526,-100000.0001,0.0004175,30]
[394508068,1763647843536,-1100.0,0.0004178,60]
[394508069,1763647843546,-500.0,0.00041799,2]
[394508070,1763647843556,-1037.0,0.000418,15]
[394508071,1763647843566,-519.1238,0.0004185,2]
[394508072,1763647843576,-764.17965194,0.00041859,2]
[394508073,1763647843739,-159.86537394,0.00041859,2]
[394508074,1763647843750,-764.17965194,0.0004186,2]
[394508075,1763647843760,-182.08087393,0.0004186,5]
[394508076,1763647843770,-2146.25354667,0.0004186,15]
[394508077,1763647843781,-167.46148221,0.0004186,120]
[394508078,1763647843790,-764.17965194,0.0004186,2]
[394508079,1763647843801,-159.86537393,0.0004186,2]
[394508080,1763647843811,-662.88421515,0.0004186,2]
[394508081,1763647843821,-207.7987878,0.0004186,8]
[394508082,1763647843830,-16790.9221591,0.00041873,2]
[394508083,1763647843840,-48332.9642763,0.00041873,2]
[394508084,1763647843849,-1209.9703231,0.00041873,2]
[394508085,1763647843860,-14578.5407317,0.00041873,2]
[394508086,1763647843869,-200.0,0.00041889,120]
[394508087,1763647843879,-641.60048513,0.00041898,120]
[394508088,1763647843889,-50000.0,0.000419,41]
[394508089,1763647843907,-189.28916149,0.000419,120]
[394508090,1763647843917,-320.10721852,0.000419,120]
[394508091,1763647843926,-239.5555848,0.000419,120]
[394508092,1763647843937,-275.70018841,0.000419,120]
[394508093,1763647843948,-457.26412343,0.000419,120]
[394508094,1763647843959,-150.0,0.000419,49]
[394508095,1763647843969,-203.63574779,0.000419,120]
[394508096,1763647843979,-217.32483356,0.000419,120]
[394508097,1763647843989,-3524.37,0.00041917,2]
[394508098,1763647843999,-300.0,0.00041917,2]
[394508099,1763647844009,-300.0,0.00041917,2]
[394508100,1763647844018,-854.73,0.00041917,2]
[394508101,1763647844028,-500.0,0.00041918,30]
[394508102,1763647844039,-712.2,0.00041918,30]
[394508103,1763647844049,-500.0,0.0004193,2]
[394508104,1763647844060,-169.6,0.00041945,30]
[394508105,1763647844070,-169.6,0.00041945,30]
[394508106,1763647844080,-169.55,0.00041945,30]
[394508107,1763647844091,-189.05531488,0.00041945,30]
[394508108,1763647844101,-234.04895347,0.00041945,30]
[394508109,1763647844112,-279.58435638,0.00041945,30]
[394508110,1763647844122,-183.4097123,0.00041945,30]
[394508111,1763647844133,-150.0,0.00041945,30]
[394508112,1763647844144,-226.24508708,0.00041945,30]
[394508113,1763647844154,-202.93627182,0.00041945,30]
[394508114,1763647844164,-152.95383245,0.00041945,30]
[394508115,1763647844174,-158.56700645,0.00041945,30]
[394508116,1763647844183,-151.0,0.00041947,14]
[394508117,1763647844194,-500.0,0.00041949,2]
[394508118,1763647844208,-500.0,0.00041949,2]
[394508119,1763647844219,-500.0,0.00041949,2]
[394508120,1763647844230,-500.0,0.00041949,2]
[394508121,1763647844241,-500.0,0.00041949,2]
[394508122,1763647844253,-500.0,0.00041949,2]
[394508123,1763647844263,-498.23953974,0.0004195,7]
[394508124,1763647844274,-498.23953974,0.0004195,7]
[394508125,1763647844288,-175575.74628475,0.0004195,10]
[394508126,1763647844298,-1365575.27905489,0.0004195,7]
[394508127,1763647844308,-500.0,0.00041955,2]
[394508128,1763647844318,-150.0,0.00041956,120]
[394508129,1763647844328,-502.99,0.00041956,120]
[394508130,1763647844337,-200.0,0.00041956,7]
[394508131,1763647844347,-1246.0,0.00041956,7]
[394508132,1763647844357,-1246.0,0.00041956,7]
[394508133,1763647844366,-1246.0,0.00041956,7]
[394508134,1763647844376,-151.0,0.00041956,7]
[394508135,1763647844385,-151.0,0.00041956,7]
[394508136,1763647844396,-1246.0,0.00041956,7]
[394508137,1763647844406,-151.0,0.00041956,7]
[394508138,1763647844415,-151.0,0.00041956,7]
[394508139,1763647844424,-151.0,0.00041956,7]
[394508140,1763647844434,-151.0,0.00041956,7]
[394508141,1763647844443,-1246.0,0.00041956,7]
[394508142,1763647844452,-151.0,0.00041956,7]
[394508143,1763647844462,-1246.0,0.00041956,7]
[394508144,1763647844473,-189.16031566,0.00041956,7]
[394508145,1763647844483,-151.0,0.00041956,7]
[394508146,1763647844493,-1246.0,0.00041956,7]
[394508147,1763647844503,-151.0,0.00041956,7]
[394508148,1763647844513,-1246.0,0.00041956,7]
[394508149,1763647844523,-151.0,0.00041956,7]
[394508150,1763647844532,-1246.0,0.00041956,7]
[394508151,1763647844543,-829.0,0.00041956,7]
[394508152,1763647844552,-151.0,0.00041956,7]
[394508153,1763647844562,-1246.0,0.00041956,7]
[394508154,1763647844573,-151.0,0.00041956,7]
[394508155,1763647844583,-847.10927607,0.00041956,7]
[394508156,1763647844593,-1246.0,0.00041956,7]
[394508157,1763647844603,-151.0,0.00041956,7]
[394508158,1763647844612,-1246.0,0.00041956,7]
[394508159,1763647844622,-152.0,0.00041956,7]
[394508160,1763647844631,-151.0,0.00041956,7]
[394508161,1763647844641,-1246.0,0.00041956,7]
[394508162,1763647844651,-152.0,0.00041956,7]
[394508163,1763647844660,-151.0,0.00041956,7]
[394508164,1763647844670,-1246.0,0.00041956,7]
[394508165,1763647844681,-152.0,0.00041956,7]
[394508166,1763647844690,-151.0,0.00041956,7]
[394508167,1763647844701,-1246.0,0.00041956,7]
[394508168,1763647844712,-152.0,0.00041956,7]
[394508169,1763647844724,-151.0,0.00041956,7]
[394508170,1763647844734,-1246.0,0.00041956,7]
[394508171,1763647844744,-151.0,0.00041956,7]
[394508172,1763647844755,-152.0,0.00041956,7]
[394508173,1763647844765,-1246.0,0.00041956,7]
[394508174,1763647844775,-151.0,0.00041956,7]
[394508176,1763647844784,-152.0,0.00041956,7]
[394508177,1763647844794,-1246.0,0.00041956,7]
[394508178,1763647844804,-153.0,0.00041956,7]
[394508179,1763647844814,-151.0,0.00041956,7]
[394508180,1763647844824,-152.0,0.00041956,7]
[394508181,1763647844834,-153.0,0.00041956,7]
[394508182,1763647844844,-1246.0,0.00041956,7]
[394508183,1763647844854,-151.0,0.00041956,7]
[394508184,1763647844863,-1246.0,0.00041956,7]
[394508185,1763647844873,-153.0,0.00041956,7]
[394508186,1763647844883,-152.0,0.00041956,7]
[394508187,1763647844892,-151.0,0.00041956,7]
[394508188,1763647844902,-152.0,0.00041956,7]
[394508189,1763647844911,-153.0,0.00041956,7]
[394508190,1763647844920,-1246.0,0.00041956,7]
[394508191,1763647844930,-151.0,0.00041956,7]
[394508192,1763647844939,-155.14782978,0.00041956,7]
[394508193,1763647844948,-1246.0,0.00041956,7]
[394508194,1763647844957,-152.0,0.00041956,7]
[394508195,1763647844969,-151.0,0.00041956,7]
[394508196,1763647844979,-1246.0,0.00041956,7]
[394508197,1763647844989,-152.0,0.00041956,7]
[394508198,1763647844999,-1246.0,0.00041956,7]
[394508199,1763647845009,-151.0,0.00041956,7]
[394508200,1763647845019,-152.0,0.00041956,7]
[394508201,1763647845029,-1246.0,0.00041956,7]
[394508202,1763647845039,-151.0,0.00041956,7]
[394508203,1763647845048,-152.0,0.00041956,7]
[394508204,1763647845058,-1246.0,0.00041956,7]
[394508205,1763647845068,-151.0,0.00041956,7]
[394508206,1763647845078,-152.0,0.00041956,7]
[394508207,1763647845088,-1246.0,0.00041956,7]
[394508208,1763647845098,-151.0,0.00041956,7]
[394508209,1763647845108,-152.0,0.00041956,7]
[394508210,1763647845118,-1246.0,0.00041956,7]
[394508211,1763647845127,-151.0,0.00041956,7]
[394508212,1763647845136,-152.0,0.00041956,7]
[394508213,1763647845145,-1246.0,0.00041956,7]
[394508214,1763647845155,-151.0,0.00041956,7]
[394508215,1763647845164,-152.0,0.00041956,7]
[394508216,1763647845173,-1131.23535878,0.00041956,7]
[394508217,1763647845182,-151.0,0.00041956,7]
[394508218,1763647845192,-152.0,0.00041956,7]
[394508219,1763647845202,-151.0,0.00041956,7]
[394508220,1763647845215,-152.0,0.00041956,7]
[394508221,1763647845227,-151.0,0.00041956,7]
[394508223,1763647845237,-151.0,0.00041956,7]
[394508224,1763647845247,-152.0,0.00041956,7]
[394508225,1763647845256,-151.0,0.00041956,7]
[394508226,1763647845266,-166.0,0.00041956,7]
[394508227,1763647845276,-152.0,0.00041956,7]
[394508228,1763647845288,-151.0,0.00041956,7]
[394508229,1763647845298,-166.0,0.00041956,7]
[394508230,1763647845308,-151.0,0.00041956,7]
[394508231,1763647845318,-152.0,0.00041956,7]
[394508232,1763647845328,-166.0,0.00041956,7]
[394508233,1763647845337,-152.0,0.00041956,7]
[394508234,1763647845347,-151.0,0.00041956,7]
[394508235,1763647845356,-166.0,0.00041956,7]
[394508236,1763647845365,-152.0,0.00041956,7]
[394508237,1763647845375,-151.0,0.00041956,7]
[394508238,1763647845384,-166.0,0.00041956,7]
[394508239,1763647845394,-152.0,0.00041956,7]
[394508240,1763647845404,-253.61607805,0.00041956,7]
[394508241,1763647845414,-151.0,0.00041956,7]
[394508242,1763647845423,-152.0,0.00041956,7]
[394508243,1763647845434,-151.0,0.00041956,7]
[394508244,1763647845443,-152.0,0.00041956,7]
[394508245,1763647845453,-151.0,0.00041956,7]
[394508246,1763647845462,-199.24581473,0.00041956,7]
[394508247,1763647845475,-151.0,0.00041956,7]
[394508248,1763647845485,-151.0,0.00041956,7]
[394508249,1763647845495,-151.0,0.00041956,7]
[394508250,1763647845504,-151.0,0.00041956,7]
[394508251,1763647845514,-151.0,0.00041956,7]
[394508252,1763647845523,-151.0,0.00041956,7]
[394508253,1763647845533,-151.0,0.00041956,7]
[394508254,1763647845542,-151.0,0.00041956,7]
[394508255,1763647845552,-151.0,0.00041956,7]
[394508256,1763647845562,-151.0,0.00041956,7]
[394508257,1763647845572,-151.0,0.00041956,7]
[394508258,1763647845581,-151.0,0.00041956,7]
[394508259,1763647845591,-151.0,0.00041956,7]
[394508260,1763647845600,-216.85797907,0.00041956,7]
[394508261,1763647845611,-151.0,0.00041956,14]
[394508262,1763647845621,-151.0,0.00041956,14]
[394508263,1763647845630,-151.0,0.00041956,14]
[394508264,1763647845640,-151.0,0.00041956,14]
[394508265,1763647845651,-215.392789,0.00041956,14]
[394508266,1763647845660,-151.0,0.00041956,120]
[394508267,1763647845670,-151.0,0.00041956,120]
[394508268,1763647845680,-151.0,0.00041957,14]
[394508270,1763647845691,-500.0,0.00041958,2]
[394508272,1763647845700,-50000.0,0.00041959,36]
[394508274,1763647845710,-50000.0,0.00041959,37]
[394508277,1763647845723,-50000.0,0.00041959,38]
[394508279,1763647845733,-50000.0,0.00041959,39]
[394508281,1763647845743,-151.0,0.00041959,120]
[394508283,1763647845753,-500.0,0.00041959,2]
[394508285,1763647845762,-500.0,0.00041959,2]
[394508287,1763647845772,-500.0,0.00041959,2]
[394508289,1763647845782,-500.0,0.00041959,2]
[394508291,1763647845792,-500.0,0.00041959,2]
[394508292,1763647845803,-500.0,0.00041959,2]
[394508293,1763647845813,-362.27,0.00041959,2]
[394508294,1763647845822,-25096.54475488,0.00041959,27]
[394508295,1763647845831,-1720570.01257657,0.0004196,7]
[394508296,1763647845936,-1965.0,0.0004196,7]
[394508297,1763647846010,-312.57019461,0.00016304,2]
[394508298,1763647846019,-104.43366444,0.00016607,2]
[394508299,1763647846033,-645.56633556,0.00016607,2]
[394508300,1763647846045,-178.96114393,0.00030544,15]
[394508301,1763647846055,-8285.72252051,0.00033373,2]
[394508302,1763647846074,-370.49424269,0.00033373,2]
[394508303,1763647846085,-550.68,0.00040384,2]
[394508304,1763647846095,-169.6,0.00041123,30]
[394508305,1763647846104,-1914.62815731,0.0004194,2]
[394508306,1763647846116,-170.42267523,0.0004194,2]
[394508307,1763647846126,-300436.19969233,0.0004196,7]
[394508308,1763647846138,-436.7928,0.0004196,7]
[394508309,1763647846151,-50222.12044,0.0004196,7]
[394508310,1763647846223,-750.0,0.00016501,2]
[394508311,1763647846233,-300.2022,0.00041955,109]
[394508312,1763647846243,-3499.7978,0.0004196,7]
[394508313,1763647846254,-299.81896116,0.0004196,7]
[394508314,1763647846265,-302.39135461,0.0004196,7]
[394508315,1763647846275,-3336.51460754,0.0004196,7]
[394510037,1763648063499,-285.25975086,0.0001627,2]
[394510040,1763648068183,-256.83163083,0.0001627,2]
[394510042,1763648073090,-167.59957549,0.0001627,2]
[394510065,1763648104391,500.0,0.0001617,2]
[394510261,1763648254659,400.0,0.000169,6]
[394510356,1763648368094,150.0,0.00018719,120]
[394510392,1763648435178,-154.6410347,0.00016299,2]
[394510393,1763648435206,-177.75938981,0.000163,2]
[394510396,1763648436924,-304.84144416,0.0001622,2]
[394510398,1763648439008,-261.66181221,0.0001622,2]
[394510403,1763648450238,-232.34105158,0.000162,2]
[394510404,1763648452266,-164.06121647,0.000162,2]
[394510406,1763648456279,-200.0,0.000162,2]
[394510499,1763648719736,-34.59773195,0.000162,2]
[394510500,1763648719761,-250.0,0.0001621,2]
[394510501,1763648719788,-46.70327592,0.0001622,2]
[394510506,1763648789180,3138.31,0.00015815,2]
[394510509,1763648814651,40612.88071588,0.000162,5]
[394510512,1763648844336,500.0,0.000169,6]
[394510518,1763648924188,1500.0,0.00015756,2]
[394510519,1763648977763,3243.98,0.00015656,2]
[394510520,1763648993544,2744.73,0.00015801,2]
[394510529,1763649031749,-17.79346771,0.0001622,2]
[394510530,1763649031759,-250.0,0.00016258,2]
[394510531,1763649031773,-631.0,0.00016303,2]
[394510532,1763649031783,-500.0,0.00016373,2]
[394510533,1763649031794,-631.0,0.00016382,2]
[394510534,1763649031805,-1200.0,0.00016398,2]
[394510535,1763649031815,-862.72875842,0.00016398,2]
[394510536,1763649031851,-337.27124158,0.00016398,2]
[394510537,1763649031862,-300.0,0.00016398,2]
[394510538,1763649031872,-550.0,0.00016398,2]
[394510539,1763649031882,-300.0,0.00016398,2]
[394510540,1763649031892,-148.60850219,0.00016399,2]
[394510541,1763649031904,-141770.74158382,0.00016399,2]
[394510542,1763649031915,-32414.39699909,0.00016399,2]
[394510544,1763649031975,200.0,0.00015675,2]
[394510545,1763649031989,-91600.0,0.00016399,2]
[394510558,1763649038322,-354.0347142,0.00016399,2]
[394510559,1763649038368,-119068.20566995,0.00016399,2]
[394510573,1763649039715,-379.97559701,0.00016298,2]
[394510574,1763649039725,-985.36443642,0.00016399,2]
[394510575,1763649039798,-355755.54959433,0.00016399,2]
[394510576,1763649039808,-6773.4551,0.00016399,2]
[394510577,1763649039818,-9999.99,0.00016399,2]
[394510578,1763649039828,-999.99,0.00016399,2]
[394510579,1763649039837,-2500.0,0.000164,2]
[394510580,1763649039847,-2182.6596684,0.000164,2]
[394510581,1763649039857,-249.21583848,0.000164,2]
[394510582,1763649039866,-6963.04138177,0.000164,2]
[394510583,1763649039876,-1000.0,0.000164,2]
[394510584,1763649039886,-631.0,0.00016428,2]
[394510585,1763649039896,-3259.26,0.00016438,2]
[394510586,1763649039905,-2182.65966831,0.00016456,2]
[394510587,1763649039919,-6963.04138176,0.00016456,2]
[394510588,1763649039929,-631.0,0.00016469,2]
[394510589,1763649039940,-500.0,0.00016473,2]
[394510590,1763649039951,-500.0,0.00016473,2]
[394510591,1763649039961,-500.0,0.00016473,2]
[394510592,1763649039971,-500.0,0.00016473,2]
[394510593,1763649039981,-500.0,0.00016473,2]
[394510594,1763649039991,-500.0,0.00016473,2]
[394510595,1763649040000,-500.0,0.00016473,2]
[394510596,1763649040011,-502.94342749,0.00016473,2]
[394510597,1763649040021,-500.0,0.00016473,2]
[394510598,1763649040030,-500.0,0.00016473,2]
[394510599,1763649040040,-503.07559405,0.00016473,2]
[394510600,1763649040050,-360.35317207,0.00016473,2]
[394510602,1763649040060,-500.0,0.00016473,2]
[394510604,1763649040069,-500.0,0.00016473,2]
[394510605,1763649040078,-429.05792664,0.00016473,2]
[394510606,1763649040088,-35713.9331948,0.0001649,2]
[394510607,1763649040098,-500.0,0.00016499,2]
[394510608,1763649040107,-558.2,0.00016499,2]
[394510609,1763649040117,-500.0,0.00016499,2]
[394510610,1763649040126,-1669.294,0.00016499,2]
[394510611,1763649040135,-175.261,0.00016499,2]
[394510612,1763649040145,-226.95782303,0.00016499,2]
[394510613,1763649040154,-500.0,0.00016499,2]
[394510614,1763649040164,-567.99968923,0.00016499,2]
[394510615,1763649040174,-500.0,0.00016499,2]
[394510616,1763649040184,-158.87047612,0.00016499,2]
[394510617,1763649040196,-363.26720897,0.00016499,2]
[394510618,1763649040206,-500.0,0.00016499,2]
[394510619,1763649040215,-500.0,0.00016499,2]
[394510620,1763649040225,-500.0,0.00016499,2]
[394510621,1763649040234,-500.0,0.00016499,2]
[394510622,1763649040244,-500.0,0.00016499,2]
[394510623,1763649040254,-555.26791659,0.00016499,2]
[394510624,1763649040264,-500.0,0.00016499,2]
[394510625,1763649040274,-500.0,0.00016499,2]
[394510626,1763649040287,-513.74041523,0.00016499,2]
[394510627,1763649040297,-236.90694414,0.00016499,2]
[394510628,1763649040306,-460.93199095,0.00016499,2]
[394510629,1763649040316,-799.4,0.00016499,2]
[394510630,1763649040326,-799.4,0.00016499,2]
[394510631,1763649040335,-799.4,0.00016499,2]
[394510632,1763649040345,-500.0,0.00016499,2]
[394510633,1763649040354,-513.24258556,0.00016499,2]
[394510634,1763649040363,-395.96776096,0.00016499,2]
[394510635,1763649040373,-500.0,0.00016499,2]
[394510636,1763649040383,-500.0,0.00016499,2]
[394510637,1763649040393,-500.0,0.00016499,2]
[394510638,1763649040402,-500.0,0.00016499,2]
[394510639,1763649040412,-500.0,0.00016499,2]
[394510640,1763649040422,-500.0,0.00016499,2]
[394510641,1763649040432,-500.0,0.00016499,2]
[394510642,1763649040443,-500.0,0.00016499,2]
[394510643,1763649040454,-500.0,0.00016499,2]
[394510644,1763649040463,-332.31984961,0.00016499,2]
[394510645,1763649040474,-500.0,0.00016499,2]
[394510646,1763649040483,-500.0,0.00016499,2]
[394510647,1763649040497,-500.0,0.00016499,2]
[394510648,1763649040507,-500.0,0.00016499,2]
[394510649,1763649040517,-1000.0,0.000165,2]
[394510650,1763649040527,-2182.65966831,0.00016511,2]
[394510651,1763649040537,-6963.04138176,0.00016511,2]
[394510652,1763649040547,-2182.65966831,0.00016567,2]
[394510653,1763649040558,-6963.04138176,0.00016567,2]
[394510654,1763649040567,-249.21583841,0.00016615,2]
[394510655,1763649040577,-2182.65966831,0.00016623,2]
[394510656,1763649040592,-6963.04138176,0.00016623,2]
[394510657,1763649040602,-631.0,0.00016661,2]
[394510658,1763649040611,-2182.65966831,0.00016678,2]
[394510659,1763649040621,-6963.04138176,0.00016678,2]
[394510660,1763649040631,-2182.65966831,0.00016734,2]
[394510661,1763649040641,-6963.04138176,0.00016734,2]
[394510662,1763649040652,-2182.65966831,0.0001679,2]
[394510663,1763649040663,-6963.04138176,0.0001679,2]
[394510664,1763649040672,-631.0,0.00016792,2]
[394510665,1763649040681,-631.0,0.00016811,2]
[394510666,1763649040696,-249.21583841,0.00016831,2]
[394510667,1763649040706,-2182.65966831,0.00016845,2]